Cogmind - Beta 13 @@@ ROGUE MODE // 2024.07.22 @ 22:55:49 Player: UberDoot Result: Destroyed by G-73 Enforcer with Phase Gun Performance ------------- Evolutions (9) 4500 Regions Visited (21) 4200 Robots Destroyed (167) 835 Value Destroyed (4698) 4698 Prototype IDs (41) 820 Alien Tech Used (0) 0 Bonus (2765) 2765 TOTAL SCORE: 17818 Bonus ------- High Alert Combat Kills 909 Follower Combat Kills 286 Entered Garrisons 200 Entered DSFs 500 Aligned with FarCom 300 Met Imprinter 300 Acquired ECA 300 Friendly Fire -30 Cogmind --------- Core Integrity 0/1600 Matter 300/300 Energy 100/100 System Corruption 16% Temperature Cool (9) Movement Core (50) Location -1/Command Parts ------- > --- POWER (2) -------- (None) > --- PROPULSION (8) --- (None) > --- UTILITY (13) ----- (None) > --- WEAPON (2) ------- (None) > --- INVENTORY (5) ---- Q-thruster Improved Propulsion Shielding Tiamat Missile Launcher Enhanced Force Lance Peak State ------------ > --- POWER ------------ Micro Antimatter Reactor Micro Antimatter Reactor > --- PROPULSION ------- Improved VTOL Module Cooled VTOL Module Cooled VTOL Module Impulse Thruster Impulse Thruster Impulse Thruster Field Propulsion Array > --- UTILITY ---------- Advanced Power Amplifier Advanced Heat Sink Enhanced Optical Array Long-range Terrain Scanner Advanced ECM Suite Cloaking Device Improved Power Shielding Hacking Suite Makeshift Hacking Suite Improved Hacking Suite Advanced Hacking Suite Improved System Shield Mini Drone Bay > --- WEAPON ----------- Long-range Phase Cannon Impact Mace > --- INVENTORY -------- Micro Antimatter Reactor Impulse Thruster Array Improved Propulsion Shielding Tiamat Missile Launcher [Rating: 146] Favorites ----------- Power Ion Engine Engine Ion Engine Power Core Light Nuclear Core Reactor Micro Antimatter Reactor Propulsion Armored Treads Treads Armored Treads Leg Aluminum Leg Wheel Wheel Flight Unit Improved VTOL Module Utility Huge Storage Unit Device Heat Sink Storage Huge Storage Unit Processor Signal Interpreter Hackware Makeshift Hacking Suite Protection Hardened Heavy Armor Plating Weapon Power Maul Energy Gun Advanced Beam Rifle Energy Cannon Long-range Phase Cannon Ballistic Gun Enhanced Autogun Ballistic Cannon Flak Cannon Launcher Missile Launcher Impact Weapon Power Maul Slashing Weapon Mining Claw Build | -11 -10 -9 -9 -9 -8 -8 -8 -8 -7 -7 -7 -7 -6 -6 -5 -4 -3 -2 -2 -1 -1 ------- Run | Yrd Mat Mat Min Exi Min Mat Gar Mat Fac Low Low Zio Pro Fac Fac Fac Res Res DSF Acc Com Slots Evolved 18 | . . 2 . . . 2 . . 2 . . . . 2 2 2 2 2 . 2 . Power 1 | . . . . . . . . . . . . . . 1 . . . . . . . Propulsion 6 | . . 1 . . . . . . 1 . . . . 1 1 . 1 1 . . . Utility 11 | . . 1 . . . 2 . . 1 . . . . . 1 2 1 1 . 2 . Weapon . | . . . . . . . . . . . . . . . . . . . . . . Parts Attached 262 | 7 19 27 9 2 1 56 18 18 13 4 . 5 6 10 11 21 4 3 5 14 9 Power 20 | 1 3 1 . . . 4 1 1 1 . . . . 2 . 2 . 1 2 . 1 Engine 11 | 1 3 1 . . . 3 1 . 1 . . . . 1 . . . . . . . Core 5 | . . . . . . 1 . 1 . . . . . 1 . 2 . . . . . Reactor 4 | . . . . . . . . . . . . . . . . . . 1 2 . 1 Propulsion 64 | 2 5 11 1 2 . 21 1 2 1 . . . . 2 3 2 1 1 1 3 5 Treads 20 | 2 . 3 . 1 . 14 . . . . . . . . . . . . . . . Leg 6 | . 3 3 . . . . . . . . . . . . . . . . . . . Wheel 16 | . 2 5 1 1 . 6 1 . . . . . . . . . . . . . . Hover . | . . . . . . . . . . . . . . . . . . . . . . Flight 22 | . . . . . . 1 . 2 1 . . . . 2 3 2 1 1 1 3 5 Utility 89 | 2 6 5 3 . 1 11 3 9 5 2 . 5 . 4 3 13 3 1 2 9 2 Device 48 | 1 3 2 . . 1 4 2 5 3 1 . 2 . 3 3 8 1 . 1 6 2 Storage 4 | 1 3 . . . . . . . . . . . . . . . . . . . . Processor 5 | . . . 1 . . 1 . 1 . . . . . . . . . . . 2 . Hackware 11 | . . . . . . . . . 1 . . 2 . 1 . 4 1 . 1 1 . Protection 21 | . . 3 2 . . 6 1 3 1 1 . 1 . . . 1 1 1 . . . Artifact . | . . . . . . . . . . . . . . . . . . . . . . Weapon 89 | 2 5 10 5 . . 20 13 6 6 2 . . 6 2 5 4 . . . 2 1 Energy Gun 11 | . 3 3 1 . . 4 . . . . . . . . . . . . . . . Energy Cannon 4 | . 1 1 . . . . . . . . . . . . . 1 . . . . 1 Ballistic Gun 13 | 2 1 2 . . . 2 . 2 1 . . . 2 1 . . . . . . . Ballistic Cannon 26 | . . 1 2 . . 9 4 3 . 1 . . 2 . 3 1 . . . . . Launcher 12 | . . 2 2 . . 1 4 . 1 . . . 1 . . 1 . . . . . Special Weapon . | . . . . . . . . . . . . . . . . . . . . . . Impact Weapon 22 | . . 1 . . . 4 5 1 3 1 . . 1 1 2 1 . . . 2 . Slashing Weapon 1 | . . . . . . . . . 1 . . . . . . . . . . . . Piercing Weapon . | . . . . . . . . . . . . . . . . . . . . . . Special Melee Weapon . | . . . . . . . . . . . . . . . . . . . . . . Unidentified Prototypes 9 | . . 1 . . . 3 . . . . . 1 . 1 . 2 . . . 1 . Parts Lost 54 | . 2 7 2 . . 11 1 1 . . . . 1 1 1 1 . . 3 . 23 Power 6 | . 1 . . . . 2 . . . . . . . . . . . . . . 3 Propulsion 20 | . 1 5 . . . 2 1 1 . . . . . . . . . . 1 . 9 Utility 22 | . . 2 1 . . 4 . . . . . . 1 . 1 1 . . 2 . 10 Weapon 6 | . . . 1 . . 3 . . . . . . . 1 . . . . . . 1 Highest Loss Streak 12 | . 2 4 1 . . 3 1 1 . . . . 1 1 1 1 . . 3 . 12 To Critical Strikes . | . . . . . . . . . . . . . . . . . . . . . . Average Slot Usage (%) 92 | . 98 96 92 100 100 92 91 86 91 92 92 91 91 92 93 93 92 95 92 95 86 Engine 7 | . 13 10 11 11 11 8 9 5 2 7 7 7 7 6 5 3 . . . . . Core 1 | . . . . . . . . 3 4 . . . . 6 5 6 9 4 3 . . Treads 10 | . 7 7 11 11 11 19 18 11 . . . . . . . . . . . . . Leg 1 | . 12 . . . . . . . . . . . . . . . . . . . . Wheel 7 | . 8 23 22 21 22 7 8 5 . . . . . . . . . . . . . Flight 8 | . . . . . . . . 6 23 23 23 23 23 25 28 25 28 30 30 28 24 Device 14 | . 13 11 1 . 10 12 10 14 26 23 23 23 22 13 16 25 23 21 19 24 23 Storage 6 | . 13 11 11 11 11 9 9 5 . . . . . . . . . . . . . Processor 5 | . . . 2 11 11 9 10 7 7 7 7 4 . . . . . . . 3 4 Hackware 4 | . . . . . . . . . 2 7 7 10 15 20 17 14 15 17 18 20 15 Protection 6 | . . 10 10 11 . 8 7 8 7 7 7 6 7 6 5 4 4 8 5 4 3 Energy Gun 6 | . 12 11 8 11 11 9 9 4 . . . . . . . . . . . . . Ballistic Gun 2 | . 10 4 2 . . . . 4 7 7 7 7 6 6 3 . . . . . . Ballistic Cannon 3 | . . 2 10 11 11 6 4 5 . . . . 1 . 1 4 . . . . . Impact Weapon 2 | . . . . . . 1 4 2 6 7 7 7 5 6 4 4 4 4 4 3 4 Naked Turns 5 | . . . . . . . . . . . . . . . . . . . . . 5 Heaviest Build 129 | 14 90 98 115 95 95 113 124 129 25 24 24 24 30 30 34 37 39 46 46 45 46 Greatest Support 63 | 40 40 30 20 20 20 63 40 40 25 25 25 25 25 30 36 38 43 48 52 49 53 Greatest Overweight (x) 36 | . 4 9 5 9 4 11 36 12 . . . . 1 . . 1 . . . 1 . Average Overweight (x) 1 | . 1 3 4 4 4 6 11 7 . . . . . . . . . . . . . Largest Inventory Capacity 25 | 8 25 25 25 25 25 25 25 25 5 5 5 5 5 5 5 5 5 5 5 5 5 Average Capacity 16 | 7 13 25 25 25 25 25 25 17 5 5 5 5 5 5 5 5 5 5 5 5 5 Most Carried 25 | 7 23 25 25 25 25 25 25 25 5 5 5 5 5 5 5 5 5 4 5 5 5 Average Carried 16 | 5 11 24 24 24 24 24 24 17 3 5 5 5 5 4 4 4 4 3 4 4 4 Final Capacity 25 | 8 25 25 25 25 25 25 25 5 5 5 5 5 5 5 5 5 5 5 5 5 5 Final Carried 25 | 7 23 25 25 25 25 24 25 5 5 5 5 5 5 5 5 5 5 4 5 5 4 Class Distribution -------------------- 65% | Mutant 20% | Hacker-Ninja 5% | Scavenger-Mutant 4% | Hacker-Mutant Dominant Class ---------------- Mutant | -10/Materials Scavenger-Mutant | -9/Materials Mutant | -9/Mines Mutant | -9/Exiles Scavenger-Mutant | -8/Mines Mutant | -8/Materials Mutant | -8/Garrison Mutant | -8/Materials Scavenger-Ninja | -7/Factory Mutant | -7/Lower Caves Mutant | -7/Lower Caves Mutant | -7/Zion Hacker-Mutant | -6/Proximity Caves Hacker-Ninja | -6/Factory Hacker-Ninja | -5/Factory Hacker-Ninja | -4/Factory Hacker-Ninja | -3/Research Hacker-Ninja | -2/Research Hacker-Ninja | -2/DSF Hacker-Ninja | -1/Access Hacker-Ninja | -1/Command Resources | -11 -10 -9 -9 -9 -8 -8 -8 -8 -7 -7 -7 -7 -6 -6 -5 -4 -3 -2 -2 -1 -1 ----------- Run | Yrd Mat Mat Min Exi Min Mat Gar Mat Fac Low Low Zio Pro Fac Fac Fac Res Res DSF Acc Com Matter Collected 5377 | 297 562 571 232 . 48 1353 548 208 97 207 37 22 40 308 112 391 42 . . . 302 Remotely 32 | . . . . . . . . . . . . . . . . . . . . . 32 Salvage Created 5525 | 98 445 777 101 . . 1740 574 277 97 117 37 . 53 338 180 468 42 . . 11 170 Parts 274 | 14 32 47 9 . . 87 36 17 3 . 4 . 2 5 4 10 3 . . . 1 Haulers Intercepted 4 | . . 1 . . . 1 . . 1 . . . . . . 1 . . . . . Recyclers Shooed 8 | . . 2 . . . 3 . 2 . . . . . 1 . . . . . . . Parts Field Recycled . | . . . . . . . . . . . . . . . . . . . . . . Retrieved Matter . | . . . . . . . . . . . . . . . . . . . . . . Parts Self-Destructed 12 | . . . . . . . . . . 6 4 . 2 . . . . . . . . Prevented . | . . . . . . . . . . . . . . . . . . . . . . Kills | -11 -10 -9 -9 -9 -8 -8 -8 -8 -7 -7 -7 -7 -6 -6 -5 -4 -3 -2 -2 -1 -1 ------- Run | Yrd Mat Mat Min Exi Min Mat Gar Mat Fac Low Low Zio Pro Fac Fac Fac Res Res DSF Acc Com Combat Hostiles Destroyed 121 | . 16 21 14 . . 37 22 5 . . . . 2 . . 2 . . . . 2 Melee 3 | . . . . . . . . . . . . . . . . 2 . . . . 1 Guns 59 | . 16 17 3 . . 17 5 1 . . . . . . . . . . . . . Cannons 34 | . . 1 3 . . 19 8 3 . . . . . . . . . . . . . AOE 21 | . . 2 8 . . 1 9 . . . . . 1 . . . . . . . . Classes Destroyed 20 | 1 4 6 2 . . 3 1 . . 1 1 . 1 . . . . . . . . Worker 7 | . 2 . 1 . . 3 . . . . . . . 1 . . . . . . . Builder 6 | . . 1 . . . 2 . 1 1 . . . . . . . . . . 1 . Tunneler 6 | 5 . . . . . . . . . . . . . . . 1 . . . . . Hauler 4 | . . 1 . . . 1 . . 1 . . . . . . 1 . . . . . Recycler 9 | . . 1 . . . 3 . 1 . . . . . 2 1 1 . . . . . Minesweeper 1 | . . . . . . . . . . . 1 . . . . . . . . . . Mechanic 5 | . . . . . . 3 . . 1 . . . . . . 1 . . . . . Operator 4 | . 1 . . . . 2 . . . . . . . . . . . . . . 1 Watcher 12 | . . 1 . . . 1 1 1 . . . . . 2 2 2 1 . . . 1 Swarmer 41 | . 9 10 5 . . 7 8 2 . . . . . . . . . . . . . Grunt 41 | . 7 8 . . . 19 4 3 . . . . . . . . . . . . . Duelist 4 | . . 1 . . . 2 1 . . . . . . . . . . . . . . Sentry 16 | . . 2 . . . 7 7 . . . . . . . . . . . . . . Demolisher 1 | . . . 1 . . . . . . . . . . . . . . . . . . Specialist 2 | . . . . . . . 2 . . . . . . . . . . . . . . Hunter 1 | . . . . . . 1 . . . . . . . . . . . . . . . Programmer 6 | . . . . . . . . . . . . . 2 . . 2 . . . . 2 Heavy 1 | . . . . . . 1 . . . . . . . . . . . . . . . Decomposer 3 | . . . . . . . . . . 2 . . 1 . . . . . . . . Samaritan 2 | . . . . . . . . . . 2 . . . . . . . . . . . Assembled 8 | . . . 8 . . . . . . . . . . . . . . . . . . Best Kill Streak 7 | 2 5 5 7 . . 7 7 3 1 . 1 . 1 2 1 2 1 . . 1 1 Combat Bots Only 7 | . 5 4 6 . . 7 7 2 . . . . 1 . . 2 . . . . 2 Max Kills in Single Turn 4 | 1 2 3 4 . . 2 3 1 1 1 1 . 1 1 1 1 1 . . 1 1 Gunslinging 1 | . . 1 . . . . . . . . . . . . . . . . . . . Exploded 3 | . . 2 3 . . 1 3 . . . . . 1 . . . . . . . . Melee 1 | . . . . . . . . . . . . . . . . 1 . . . . 1 Uniques/NPCs Destroyed . | . . . . . . . . . . . . . . . . . . . . . . Combat | -11 -10 -9 -9 -9 -8 -8 -8 -8 -7 -7 -7 -7 -6 -6 -5 -4 -3 -2 -2 -1 -1 -------- Run | Yrd Mat Mat Min Exi Min Mat Gar Mat Fac Low Low Zio Pro Fac Fac Fac Res Res DSF Acc Com Hostile Shots Fired 1041 | . 125 117 46 . . 257 63 62 . 3 2 . 34 . 2 20 10 . 11 28 261 Missed 336 | . 46 22 9 . . 49 24 10 . . 1 . 20 . . 11 5 . 6 17 116 Damage Taken 12190 | . 727 976 918 . . 3611 636 646 . 53 15 . 206 . 284 187 95 . 409 250 3177 Core 2530 | . 42 180 149 . . 260 97 35 . . 15 . 44 . 18 21 . . 68 49 1552 Absorbed by Shields 103 | . . . . . . 16 41 . . . . . . . . . . . 46 . . Redirected to Shielding 108 | . . . . . . . . . . . . . . . . . . . 44 29 35 Ignored by Resistances 23 | . . . . . . . . . . . . . . . . . . . . . 23 Regen/Repaired (Parts) 1346 | . 218 51 . . . 448 . . 52 . . 164 . 21 15 286 . . . 91 . Core Remaining (%) 81 | 100 83 . . . 17 . . 28 . . . . 91 100 98 98 100 . 95 . . Volleys Fired 508 | 12 67 65 19 . . 106 48 28 6 1 . . 9 1 18 12 16 . 1 41 58 Largest 2 | 2 2 2 2 . . 2 2 2 1 2 . . 2 1 2 1 1 . 1 1 1 Hottest 126 | 40 100 126 102 . . 122 105 105 25 82 . . 61 25 82 57 105 . 105 105 105 Shots Fired 825 | 24 134 127 29 . . 211 80 48 6 2 . . 14 1 20 14 16 . 1 41 57 Gun 479 | 24 122 113 10 . . 121 42 31 6 1 . . 6 1 2 . . . . . . Cannon 318 | . 12 13 14 . . 85 25 17 . 1 . . 4 . 18 14 16 . 1 41 57 Launcher 28 | . . 1 5 . . 5 13 . . . . . 4 . . . . . . . . Special . | . . . . . . . . . . . . . . . . . . . . . . Kinetic 333 | 24 72 8 17 . . 97 25 38 6 2 . . 10 1 20 13 . . . . . Thermal 464 | . 62 118 7 . . 109 42 10 . . . . . . . 1 16 . 1 41 57 Explosive 28 | . . 1 5 . . 5 13 . . . . . 4 . . . . . . . . Electromagnetic . | . . . . . . . . . . . . . . . . . . . . . . Robot Hit Streak 16 | 4 9 11 3 . . 16 11 10 1 . . . 5 1 . . 2 . . 1 2 Robot Miss Streak 6 | 2 6 5 4 . . 6 4 3 2 . . . 2 . . . 1 . . . . Penetration Max 1 | . . . . . . . . 1 . . . . . . . . . . . . . Secondary Targets 4 | . 2 2 . . . . . . . . . . . . . . . . . . . Max Gunslinging Chain 1 | . 1 1 . . . . . . . . . . . . . . . . . . . Shots Hit Robots 457 | 15 70 76 11 . . 135 58 26 6 4 1 . 11 6 3 15 3 . . 2 15 Core Hits 281 | 7 29 34 25 . . 102 53 14 1 1 1 . 3 1 1 4 1 . . 1 3 Critical Kills 5 | . . 1 . . . . . . . . . . . 1 . 2 . . . . 1 Critical Parts Destroyed 15 | . . . . . . . . 1 . 1 . . 2 2 1 4 . . . . 4 Critical Strikes 36 | . 2 5 . . . 4 4 3 . 1 . . 2 3 1 6 . . . . 5 Burn 15 | . 2 4 . . . 3 4 2 . . . . . . . . . . . . . Meltdown 1 | . . 1 . . . . . . . . . . . . . . . . . . . Destroy 1 | . . . . . . . . 1 . . . . . . . . . . . . . Blast 1 | . . . . . . 1 . . . . . . . . . . . . . . . Smash 18 | . . . . . . . . . . 1 . . 2 3 1 6 . . . . 5 Melee Attacks 254 | . . 2 . . . 17 19 4 8 4 7 3 12 11 15 40 25 . 3 30 54 Impact 254 | . . 2 . . . 17 19 4 8 4 7 3 12 11 15 40 25 . 3 30 54 Slashing . | . . . . . . . . . . . . . . . . . . . . . . Piercing . | . . . . . . . . . . . . . . . . . . . . . . Sneak Attacks 25 | . . . . . . 5 . 1 3 4 1 . 1 4 1 4 . . . 1 . Combat Hostiles . | . . . . . . . . . . . . . . . . . . . . . . Follow-up Attacks . | . . . . . . . . . . . . . . . . . . . . . . Damage Inflicted 14355 | 156 833 1414 879 . . 3790 2176 789 403 363 103 . 495 506 280 1066 154 . . 142 806 Guns 4830 | 156 780 1104 65 . . 1518 660 427 37 . . . 65 18 . . . . . . . Cannons 2502 | . 53 124 152 . . 1323 514 230 . . . . . . . . 36 . . 34 36 Explosions 2394 | . . 186 662 . . 415 1002 . . . . . 129 . . . . . . . . Melee 4596 | . . . . . . 527 . 118 366 363 103 . 293 488 280 1066 118 . . 108 766 Ramming 33 | . . . . . . 7 . 14 . . . . 8 . . . . . . . 4 Kinetic 3412 | 156 410 68 164 . . 1483 514 497 37 . . . 65 18 . . . . . . . Thermal 3920 | . 423 1160 53 . . 1358 660 160 . . . . . . . . 36 . . 34 36 Explosive 2394 | . . 186 662 . . 415 1002 . . . . . 129 . . . . . . . . Electromagnetic . | . . . . . . . . . . . . . . . . . . . . . . Impact 4596 | . . . . . . 527 . 118 366 363 103 . 293 488 280 1066 118 . . 108 766 Slashing . | . . . . . . . . . . . . . . . . . . . . . . Piercing . | . . . . . . . . . . . . . . . . . . . . . . Highest Corruption 16 | . . . . . . . 1 1 . . . . 5 . 2 4 . . . 1 16 Average Corruption 1 | . . . . . . . 1 1 . . . . 3 . 2 2 . . . 1 2 Corruption Purged . | . . . . . . . . . . . . . . . . . . . . . . Corruption Blocked . | . . . . . . . . . . . . . . . . . . . . . . Effects 57 | . . . . . . . 22 10 . . . . 7 . . 6 . . . 3 9 Message Errors 15 | . . . . . . . 3 4 . . . . 1 . . 1 . . . 1 5 Matter Fused 8 | . . . . . . . 5 2 . . . . 1 . . . . . . . . Heat Flow Errors 8 | . . . . . . . 2 3 . . . . 1 . . . . . . 1 1 Energy Discharges 7 | . . . . . . . 3 . . . . . 2 . . 1 . . . . 1 Data Loss (minor) 7 | . . . . . . . 4 . . . . . 1 . . 1 . . . 1 . Data Loss (major) 3 | . . . . . . . 1 1 . . . . . . . . . . . . 1 Misfires 4 | . . . . . . . 1 . . . . . 1 . . 2 . . . . . Alerts 2 | . . . . . . . 1 . . . . . . . . 1 . . . . . Weapon Failures 3 | . . . . . . . 2 . . . . . . . . . . . . . 1 Overload Shots . | . . . . . . . . . . . . . . . . . . . . . . Overflow Damage 2340 | . . 7 36 . . 328 26 . 109 260 . . 244 339 131 457 . . . 68 335 Projectiles 23 | . . 7 . . . 16 . . . . . . . . . . . . . . . Explosions 75 | . . . 36 . . 13 26 . . . . . . . . . . . . . . Melee 2242 | . . . . . . 299 . . 109 260 . . 244 339 131 457 . . . 68 335 Knockbacks 49 | . . 1 1 . . 31 2 3 1 . . . 1 2 . 2 . . . . 5 Impact 12 | . . . . . . 1 . . 1 . . . 1 2 . 2 . . . . 5 Kinetic 30 | . . 1 1 . . 23 2 3 . . . . . . . . . . . . . Secondary 7 | . . . . . . 7 . . . . . . . . . . . . . . . Self-Inflicted Damage 159 | . . . 108 . . 2 32 7 . . . . 8 . . . . . . . 2 Shots 4 | . . . 3 . . . 1 . . . . . . . . . . . . . . Rammed 5 | . . . . . . 2 . 1 . . . . . . . . . . . . 2 Targets Rammed 5 | . . . . . . 2 . 1 . . . . . . . . . . . . 2 Kicked . | . . . . . . . . . . . . . . . . . . . . . . Crushed . | . . . . . . . . . . . . . . . . . . . . . . Highest Temperature 485 | . 192 457 189 . . 485 264 422 10 42 . . 188 10 70 47 96 2 4 320 169 Average Temperature 98 | . 53 165 56 . . 185 56 120 7 21 . . 47 1 33 21 36 2 4 87 47 Received Heat Transfer 2695 | . 180 345 9 . . 1317 207 252 . . . . . . 18 9 9 . . . 349 Effects 23 | . . 9 . . . 12 . 2 . . . . . . . . . . . . . Shutdowns 5 | . . 1 . . . 4 . . . . . . . . . . . . . . . Energy Bleed 2 | . . 2 . . . . . . . . . . . . . . . . . . . Interference 3 | . . 3 . . . . . . . . . . . . . . . . . . . Matter Decay 8 | . . 3 . . . 5 . . . . . . . . . . . . . . . Short Circuit 3 | . . . . . . 2 . 1 . . . . . . . . . . . . . Damage (minor) 2 | . . . . . . 1 . 1 . . . . . . . . . . . . . Siege Activations . | . . . . . . . . . . . . . . . . . . . . . . Robots Corrupted . | . . . . . . . . . . . . . . . . . . . . . . Combat Hostiles . | . . . . . . . . . . . . . . . . . . . . . . Parts Fried 25 | . . . . . . 4 . . 2 1 . . . 2 5 7 . . . 2 2 Impact Corruptions 81 | . . . . . . 9 . . 4 15 . . 10 8 4 15 . . . 3 13 Robots Melted 2 | . . 1 . . . . . 1 . . . . . . . . . . . . . Combat Hostiles 2 | . . 1 . . . . . 1 . . . . . . . . . . . . . Parts Melted 27 | . 6 10 . . . 6 4 1 . . . . . . . . . . . . . Heat Transferred 9236 | . 1298 2962 111 . . 2812 1498 444 . . . . . . . . 37 . . 37 37 Parts Sabotaged 4 | . . . . . . . . . . . . . . . . . . . . . 4 Parts Stolen . | . . . . . . . . . . . . . . . . . . . . . . Parts Stripped . | . . . . . . . . . . . . . . . . . . . . . . Power Chain Reactions . | . . . . . . . . . . . . . . . . . . . . . . Alert | -11 -10 -9 -9 -9 -8 -8 -8 -8 -7 -7 -7 -7 -6 -6 -5 -4 -3 -2 -2 -1 -1 ------- Run | Yrd Mat Mat Min Exi Min Mat Gar Mat Fac Low Low Zio Pro Fac Fac Fac Res Res DSF Acc Com Peak Influence 2111 | 25 341 371 252 . . 911 2111 1049 448 . . . . 79 172 187 174 76 63 139 465 Initial 1028 | . 16 18 79 . . . 589 1028 397 . . . . 18 33 3 97 76 57 23 73 Average 457 | 9 75 221 174 . . 381 1229 1004 417 . . . . 37 93 74 101 76 46 67 297 Maximum Alert Level 5 | . 1 1 1 . . 3 5 3 2 . . . . . . . . . . . 2 Low Security (%) 45 | 100 94 29 42 . 100 37 . . . . . . . 100 100 100 100 100 100 100 12 Level 1 16 | . 5 70 57 . . 20 . . 6 . . . . . . . . . . . 73 Level 2 6 | . . . . . . 8 7 . 93 . . . . . . . . . . . 13 Level 3 21 | . . . . . . 33 36 100 . . . . . . . . . . . . . Level 4 6 | . . . . . . . 33 . . . . . . . . . . . . . . Level 5 4 | . . . . . . . 21 . . . . . . . . . . . . . . High Security . | . . . . . . . . . . . . . . . . . . . . . . Max Security . | . . . . . . . . . . . . . . . . . . . . . . Squads Dispatched 32 | . 4 1 . . . 7 . . . . . . . 3 1 6 4 . . 2 4 Investigation 15 | . 2 . . . . 1 . . . . . . . 1 1 5 3 . . 1 1 Extermination 3 | . . . . . . . . . . . . . . 1 . 1 . . . . 1 Reinforcement 12 | . 2 1 . . . 4 . . . . . . . 1 . . 1 . . 1 2 Assault 2 | . . . . . . 2 . . . . . . . . . . . . . . . Garrison . | . . . . . . . . . . . . . . . . . . . . . . Intercept . | . . . . . . . . . . . . . . . . . . . . . . Searches Triggered . | . . . . . . . . . . . . . . . . . . . . . . Construction Impeded . | . . . . . . . . . . . . . . . . . . . . . . Haulers Reinforced . | . . . . . . . . . . . . . . . . . . . . . . Active Scanning Responses . | . . . . . . . . . . . . . . . . . . . . . . Cargo Convoy Interrupts . | . . . . . . . . . . . . . . . . . . . . . . Stealth | -11 -10 -9 -9 -9 -8 -8 -8 -8 -7 -7 -7 -7 -6 -6 -5 -4 -3 -2 -2 -1 -1 --------- Run | Yrd Mat Mat Min Exi Min Mat Gar Mat Fac Low Low Zio Pro Fac Fac Fac Res Res DSF Acc Com Distress Signals 17 | . 1 1 1 . . 5 . . . . . . . . . . . . . 1 8 Communications Jammed . | . . . . . . . . . . . . . . . . . . . . . . Distress Signals . | . . . . . . . . . . . . . . . . . . . . . . Times Spotted 517 | . 30 31 28 . . 64 25 15 1 2 1 . 10 3 8 6 11 . 1 15 266 Peak Tracking Total 212 | . 6 5 8 . . 9 4 4 1 2 1 . 4 2 8 2 7 . 1 10 212 Tactical Retreats 31 | . 1 . . . . 2 . . . 2 1 . 4 . 1 . . . 1 6 13 Traps | -11 -10 -9 -9 -9 -8 -8 -8 -8 -7 -7 -7 -7 -6 -6 -5 -4 -3 -2 -2 -1 -1 ------- Run | Yrd Mat Mat Min Exi Min Mat Gar Mat Fac Low Low Zio Pro Fac Fac Fac Res Res DSF Acc Com Traps Triggered 20 | . 2 . 1 . . 1 11 . 1 . . . . . 1 1 . . 1 . 1 Indirectly . | . . . . . . . . . . . . . . . . . . . . . . Trap Hack Attempts . | . . . . . . . . . . . . . . . . . . . . . . Triggered . | . . . . . . . . . . . . . . . . . . . . . . Disarmed 13 | . . . . . . . . . . . . . . . . . . . . 6 7 Reprogrammed 4 | . . . . . . . . . . . . . . . 4 . . . . . . Reused 1 | . . . . . . . . . . . . . . . 1 . . . . . . Traps Extracted . | . . . . . . . . . . . . . . . . . . . . . . Installed . | . . . . . . . . . . . . . . . . . . . . . . Triggered 3 | . . . . . . . . . . 2 . . . . 1 . . . . . . Machines | -11 -10 -9 -9 -9 -8 -8 -8 -8 -7 -7 -7 -7 -6 -6 -5 -4 -3 -2 -2 -1 -1 ---------- Run | Yrd Mat Mat Min Exi Min Mat Gar Mat Fac Low Low Zio Pro Fac Fac Fac Res Res DSF Acc Com Machines Disabled 19 | . 3 1 1 . . 3 6 2 . . . . . . . 1 1 . . . 1 Max in Single Turn 2 | . 1 1 1 . . 2 1 1 . . . . . . . 1 1 . . . 1 Garrison Access 8 | . . . . . . . . 1 . . . . . 1 1 2 1 . . 2 . Phase Generator 1 | . . . . . . . . . . . . . . . . . . . . . 1 Energy Cycler 1 | . . . . . . . . . . . . . . . . . . . . 1 . Machines Repaired . | . . . . . . . . . . . . . . . . . . . . . . Machines Dismantled . | . . . . . . . . . . . . . . . . . . . . . . Machines Sabotaged . | . . . . . . . . . . . . . . . . . . . . . . Overloaded Fab Kills . | . . . . . . . . . . . . . . . . . . . . . . Hacking | -11 -10 -9 -9 -9 -8 -8 -8 -8 -7 -7 -7 -7 -6 -6 -5 -4 -3 -2 -2 -1 -1 --------- Run | Yrd Mat Mat Min Exi Min Mat Gar Mat Fac Low Low Zio Pro Fac Fac Fac Res Res DSF Acc Com Machines Accessed 95 | . 9 4 . 2 . 12 2 4 6 . 1 . 1 7 8 15 7 1 . 9 7 Terminals 55 | . 6 1 . . . 9 2 3 2 . . . 1 1 4 8 5 1 . 5 7 Fabricators 7 | . . . . . . . . . 1 . . . . 2 . 2 1 . . 1 . Repair Stations 9 | . 1 1 . . . 1 . . 2 . . . . 1 1 1 . . . 1 . Recycling Units 8 | . 2 2 . . . 1 . . . . . . . 1 1 1 . . . . . Scanalyzers 4 | . . . . . . . . . 1 . . . . 1 1 1 . . . . . Garrison Access 9 | . . . . . . 1 . 1 . . . . . 1 1 2 1 . . 2 . Total Hacks 252 | . 27 11 . 3 . 37 4 10 24 . 1 . 1 15 20 45 18 1 . 18 17 Successful 146 | . 10 6 . 3 . 14 2 4 16 . 1 . 1 10 13 32 9 1 . 13 11 Failed 106 | . 17 5 . . . 23 2 6 8 . . . . 5 7 13 9 . . 5 6 Catastrophic 20 | . 3 1 . . . 7 1 1 1 . . . . . 1 2 1 . . 2 . Database Lockouts . | . . . . . . . . . . . . . . . . . . . . . . Manual 71 | . 18 2 . 1 . 11 . 3 2 . . 2 . 5 3 14 5 . . 4 1 Terminals 149 | . 21 4 . . . 25 4 9 5 . . . 1 3 8 28 12 1 . 11 17 Fabricators 18 | . . . . . . . . . 2 . . . . 4 . 5 5 . . 2 . Repair Stations 33 | . 2 3 . . . 6 . . 9 . . . . 2 4 4 . . . 3 . Recycling Units 19 | . 4 4 . . . 5 . . . . . . . 1 2 3 . . . . . Scanalyzers 18 | . . . . . . . . . 8 . . . . 2 5 3 . . . . . Garrison Access 11 | . . . . . . 1 . 1 . . . . . 3 1 2 1 . . 2 . Terminal Hacks 66 | . 4 1 . 3 . 7 2 3 3 . 1 . 1 . 3 14 5 1 . 7 11 Record 12 | . . . . 2 . . . . . . . . 1 . . 2 2 . . 2 3 Part Schematic 4 | . 1 . . . . 2 . . . . . . . . . 1 . . . . . Robot Analysis 3 | . . . . . . . . . . . . . . . . 1 . . . . 2 Prototype ID Bank 4 | . . 1 . . . 1 . . 1 . . . . . . 1 . . . . . Open Door 3 | . . . . . . . 1 . . . 1 . . . . . . . . 1 . Open DSF 1 | . . . . . . . . . . . . . . . . . . 1 . . . Level Access Points 3 | . . . . . . . . . . . . . . . . 1 1 . . . 1 Branch Access Points 3 | . . . . . . . . 1 . . . . . . 1 1 . . . . . Emergency Access Points 3 | . . . . . . . 1 . . . . . . . . 1 . . . . 1 Machine Index 1 | . . . . . . . . . . . . . . . . . . . . 1 . Terminal Index 3 | . . . . . . . . . 1 . . . . . . 1 1 . . . . Alert Level 3 | . 1 . . . . . . . 1 . . . . . . 1 . . . . . Unreport Threat 4 | . 1 . . . . . . . . . . . . . . . 1 . . 2 . Locate Traps 2 | . . . . . . 1 . . . . . . . . . 1 . . . . . Disarm Traps 3 | . . . . . . . . . . . . . . . . . . . . 1 2 Reprogram Traps 1 | . . . . . . . . . . . . . . . 1 . . . . . . Recall Investigation 2 | . . . . . . . . . . . . . . . 1 1 . . . . . Recall Extermination 1 | . . . . . . . . . . . . . . . . . . . . . 1 Hauler Manifests 4 | . 1 . . . . 1 . 1 . . . . . . . 1 . . . . . Registered Prototypes 1 | . . . . . . . . . . . . . . . . 1 . . . . . Zone Layout 3 | . . . . . . 2 . 1 . . . . . . . . . . . . . Derelict Proto ID Bank 1 | . . . . 1 . . . . . . . . . . . . . . . . . Disengage Seal 1 | . . . . . . . . . . . . . . . . . . . . . 1 Fabricator Hacks 10 | . . . . . . . . . 1 . . . . 1 . 4 2 . . 2 . Load Schematic 6 | . . . . . . . . . 1 . . . . 1 . 2 1 . . 1 . Build 4 | . . . . . . . . . . . . . . . . 2 1 . . 1 . Repair Station Hacks 23 | . 2 2 . . . 3 . . 5 . . . . 2 3 4 . . . 2 . Scan Component 13 | . 1 1 . . . 2 . . 3 . . . . 1 2 2 . . . 1 . Repair 10 | . 1 1 . . . 1 . . 2 . . . . 1 1 2 . . . 1 . Recycling Unit Hacks 10 | . 2 3 . . . 1 . . . . . . . 1 2 1 . . . . . Retrieve Components 10 | . 2 3 . . . 1 . . . . . . . 1 2 1 . . . . . Scanalyzer 16 | . . . . . . . . . 7 . . . . 2 4 3 . . . . . Insert Component 7 | . . . . . . . . . 3 . . . . 1 2 1 . . . . . Analyze 9 | . . . . . . . . . 4 . . . . 1 2 2 . . . . . Garrison Access Hacks 9 | . . . . . . 1 . 1 . . . . . 1 1 2 1 . . 2 . Unlock Access 1 | . . . . . . 1 . . . . . . . . . . . . . . . Seal Access 8 | . . . . . . . . 1 . . . . . 1 1 2 1 . . 2 . Unauthorized Hacks 12 | . 2 . . . . 2 . . . . . . . 3 . 4 1 . . . . Terminals 9 | . 2 . . . . 2 . . . . . . . 2 . 2 1 . . . . Assimilate 2 | . 1 . . . . . . . . . . . . 1 . . . . . . . Botnet 6 | . 1 . . . . 2 . . . . . . . 1 . 1 1 . . . . Operators 1 | . . . . . . . . . . . . . . . . 1 . . . . . Fabricators 1 | . . . . . . . . . . . . . . 1 . . . . . . . Recompile 1 | . . . . . . . . . . . . . . 1 . . . . . . . Repair Stations . | . . . . . . . . . . . . . . . . . . . . . . Recycling Units 2 | . . . . . . . . . . . . . . . . 2 . . . . . Monitor 1 | . . . . . . . . . . . . . . . . 1 . . . . . Mask 1 | . . . . . . . . . . . . . . . . 1 . . . . . Scanalyzers . | . . . . . . . . . . . . . . . . . . . . . . Garrison Access . | . . . . . . . . . . . . . . . . . . . . . . Data Cores Recovered 1 | . . . . . . . . . . . . . . . . . . . . . 1 Used 1 | . . . . . . . . . . . . . . . . . . . . . 1 Hacking Detections 71 | . 8 3 . . . 11 1 3 5 . . . . 5 7 12 6 . . 6 4 Full Trace Events 12 | . . 1 . . . 1 1 . . . . . . . . 5 3 . . 1 . Feedback Events 2 | . . . . . . . . . . . . . . . . 2 . . . . . Corruption 1 | . . . . . . . . . . . . . . . . 1 . . . . . Hackware Fried 1 | . . . . . . . . . . . . . . . . 1 . . . . . Feedback Blocked . | . . . . . . . . . . . . . . . . . . . . . . Robot Schematics Acquired 4 | . . . . . . . . . . . . 4 . . . . . . . . . Robots Built . | . . . . . . . . . . . . . . . . . . . . . . Authchips . | . . . . . . . . . . . . . . . . . . . . . . Time . | . . . . . . . . . . . . . . . . . . . . . . Total Robot Build Rating . | . . . . . . . . . . . . . . . . . . . . . . Part Schematics Acquired 26 | . 1 . . . . 2 . . 3 . . 15 . 1 2 2 . . . . . Parts Built 4 | . . . . . . . . . . . . . . . . 2 1 . . 1 . Authchips 1 | . . . . . . . . . . . . . . . . 1 . . . . . Time 191 | . . . . . . . . . . . . . . . . 103 44 . . 44 . Total Part Build Rating 15 | . . . . . . . . . . . . . . . . 7 4 . . 4 . Parts Repaired 10 | . 1 1 . . . 1 . . 2 . . . . 1 1 2 . . . 1 . Time 315 | . 26 13 . . . 44 . . 129 . . . . 28 20 41 . . . 14 . Parts Recycled . | . . . . . . . . . . . . . . . . . . . . . . Recycled Matter . | . . . . . . . . . . . . . . . . . . . . . . Retrieved Matter . | . . . . . . . . . . . . . . . . . . . . . . Retrieved Components 33 | . 5 15 . . . 9 . . . . . . . 3 1 . . . . . . Parts Scanalyzed 7 | . . . . . . . . . 3 . . . . 1 2 1 . . . . . Part Schematics Acquired 7 | . . . . . . . . . 3 . . . . 1 2 1 . . . . . Parts Damaged 1 | . . . . . . . . . 1 . . . . . . . . . . . . Bothacking | -11 -10 -9 -9 -9 -8 -8 -8 -8 -7 -7 -7 -7 -6 -6 -5 -4 -3 -2 -2 -1 -1 ------------ Run | Yrd Mat Mat Min Exi Min Mat Gar Mat Fac Low Low Zio Pro Fac Fac Fac Res Res DSF Acc Com Used RIF Installer . | . . . . . . . . . . . . . . . . . . . . . . Robots Hacked . | . . . . . . . . . . . . . . . . . . . . . . Non-combat . | . . . . . . . . . . . . . . . . . . . . . . Combat . | . . . . . . . . . . . . . . . . . . . . . . Robot Hacks Applied . | . . . . . . . . . . . . . . . . . . . . . . Relay Couplers Released . | . . . . . . . . . . . . . . . . . . . . . . Fabnet Peak Effective % . | . . . . . . . . . . . . . . . . . . . . . . Robots Rewired 4 | . . . . . . . 4 . . . . . . . . . . . . . . Allies Hacked . | . . . . . . . . . . . . . . . . . . . . . . Hacks Repelled . | . . . . . . . . . . . . . . . . . . . . . . Allies | -11 -10 -9 -9 -9 -8 -8 -8 -8 -7 -7 -7 -7 -6 -6 -5 -4 -3 -2 -2 -1 -1 -------- Run | Yrd Mat Mat Min Exi Min Mat Gar Mat Fac Low Low Zio Pro Fac Fac Fac Res Res DSF Acc Com Total Allies 6 | . . . 1 . . . 4 . . . . . . 1 . . . . . . . Largest Group 4 | . . . 1 1 . . 4 . . . . . . 1 . . . . . . . Highest-Rated Group 140 | . . . 21 21 . . 140 . . . . . . 26 . . . . . . . Highest-Rated Ally 39 | . . . 21 21 . . 39 . . . . . . 26 . . . . . . . Total Orders 18 | . . . . . . . 4 7 . . . . . 4 . . . . . 3 . STAY 2 | . . . . . . . 2 . . . . . . . . . . . . . . FOLLOW 2 | . . . . . . . 2 . . . . . . . . . . . . . . EXPLORE 7 | . . . . . . . . 4 . . . . . 2 . . . . . 1 . RETURN 7 | . . . . . . . . 3 . . . . . 2 . . . . . 2 . Ally Attacks 35 | . . . . . . . 35 . . . . . . . . . . . . . . Total Damage 470 | . . . . . . . 470 . . . . . . . . . . . . . . Kills 8 | . . . . . . . 8 . . . . . . . . . . . . . . Allies Corrupted . | . . . . . . . . . . . . . . . . . . . . . . Allies Melted . | . . . . . . . . . . . . . . . . . . . . . . Intel | -11 -10 -9 -9 -9 -8 -8 -8 -8 -7 -7 -7 -7 -6 -6 -5 -4 -3 -2 -2 -1 -1 ------- Run | Yrd Mat Mat Min Exi Min Mat Gar Mat Fac Low Low Zio Pro Fac Fac Fac Res Res DSF Acc Com Robot Analysis Total 3 | . . . . . . . . . . . . . . . . 1 . . . . 2 Derelict Logs Recovered 7 | . . . 1 . . . . . . 1 1 2 2 . . . . . . . . Drone Launches 9 | . . . . . . . . 3 . . . . . 3 . . . . . 3 . Drone Recoveries 6 | . . . . . . . . 3 . . . . . 1 . . . . . 2 . Exploration | -11 -10 -9 -9 -9 -8 -8 -8 -8 -7 -7 -7 -7 -6 -6 -5 -4 -3 -2 -2 -1 -1 ------------- Run | Yrd Mat Mat Min Exi Min Mat Gar Mat Fac Low Low Zio Pro Fac Fac Fac Res Res DSF Acc Com Turns Passed 15847 | 214 1445 901 486 356 145 3703 2677 837 316 262 191 378 499 380 496 745 292 18 51 767 688 Spaces Moved 14081 | 104 869 433 283 251 101 1378 837 258 395 681 415 951 605 691 932 1343 645 65 84 1284 1476 Core 13 | 8 1 . . . . . 1 . . . . . . . . . . . . . 3 Treads 547 | 96 163 . . . . 240 42 6 . . . . . . . . . . . . . Legs 446 | . 446 . . . . . . . . . . . . . . . . . . . . Wheels 3418 | . 259 433 283 251 101 1138 794 159 . . . . . . . . . . . . . Hover . | . . . . . . . . . . . . . . . . . . . . . . Flight 9657 | . . . . . . . . 93 395 681 415 951 605 691 932 1343 645 65 84 1284 1473 Fastest Speed 12 | 50 120 125 140 140 140 140 230 39 34 34 34 34 34 29 27 26 22 19 12 19 19 Average Speed 78 | 151 133 139 148 140 140 210 263 192 34 34 34 34 41 29 27 26 22 19 18 19 20 Slowest Speed 1850 | 160 160 215 155 215 140 250 1850 410 34 34 34 34 110 29 27 103 22 19 21 94 50 Overloaded Moves 6 | . . . . . . . . . . . . . . . . . . . 6 . . Propulsion Burnouts . | . . . . . . . . . . . . . . . . . . . . . . Robots Hopped 26 | . . . . . . . . . . . . . . 2 1 5 3 . 1 1 13 Cave-ins Triggered 1 | . . . . . . . . . . . . . . . 1 . . . . . . Exploration Rate (%) 48 | 6 97 35 66 61 45 89 85 36 12 83 63 85 65 14 12 26 26 2 76 29 44 Regions Visited 21 Branch Regions 8 Pre-discovered Areas 5 | . . . 1 1 . . . . . 2 1 . . . . . . . . . . Known Exits Taken 9 | . . . 1 1 1 1 . . . . 1 . . 1 . 1 1 1 . . . Unknown Exits Taken 10 | 1 1 1 . . . . . 1 1 1 . 1 1 . 1 . . . . 1 . Scrap Searched 6 | . . . . . 1 . . . . 3 . 1 1 . . . . . . . . Spaces Dug 202 | . . 1 8 . . 12 9 4 2 1 6 . 9 3 21 26 19 . 4 37 40 Terrain Destroyed 418 | . . 8 45 . . 26 52 12 2 1 6 . 30 3 31 31 31 . 4 60 76 Melee 140 | . . 1 . . . 12 1 3 2 . 6 . 6 3 11 18 18 . 3 28 28 Projectile 146 | . . . 3 . . 2 . 9 . 1 . . 4 . 20 13 13 . 1 32 48 AOE 132 | . . 7 42 . . 12 51 . . . . . 20 . . . . . . . . Terrain Rammed 1 | . . . . . . . . . . . . . 1 . . . . . . . . Walls Destroyed . | . . . . . . . . . . . . . . . . . . . . . . Machines Disabled . | . . . . . . . . . . . . . . . . . . . . . . Actions | -11 -10 -9 -9 -9 -8 -8 -8 -8 -7 -7 -7 -7 -6 -6 -5 -4 -3 -2 -2 -1 -1 --------- Run | Yrd Mat Mat Min Exi Min Mat Gar Mat Fac Low Low Zio Pro Fac Fac Fac Res Res DSF Acc Com Total 17537 | 135 1028 601 317 254 105 1931 1190 548 556 700 450 999 812 846 1122 1637 727 69 110 1711 1689 Wait 2030 | 6 32 33 . . . 289 176 211 122 9 29 34 180 117 142 197 31 1 2 323 96 Move 14011 | 103 868 432 282 250 100 1378 835 257 394 680 414 950 604 686 928 1333 640 64 80 1281 1452 Hop 21 | . . . . . . . . . . . . . . 2 1 4 1 . 1 1 11 Pick Up 158 | 7 26 21 3 1 2 38 10 9 3 . . 1 . 8 3 11 4 1 3 5 2 Fast Attach 113 | 7 8 8 1 . . 15 3 8 10 2 . 5 . 7 4 13 2 . 4 10 6 Attach 63 | . 1 9 3 . . 19 1 8 3 . . . . 4 2 3 2 2 1 2 3 Detach 32 | . 1 3 . . . 8 3 3 3 . . 2 . . . 3 2 . . 3 1 Swap 87 | . 10 10 5 2 1 22 14 2 . 2 . . 6 . 5 5 . 1 . 2 . Drop 174 | . 15 18 4 1 2 37 14 17 7 2 . 4 . 10 3 16 4 . 3 13 4 Fire 508 | 12 67 65 19 . . 106 48 28 6 1 . . 9 1 18 12 16 . 1 41 58 Melee 254 | . . 2 . . . 17 19 4 8 4 7 3 12 11 15 40 25 . 3 30 54 Ram 5 | . . . . . . 1 . 1 . . . . 1 . . . . . . . 2 Kick . | . . . . . . . . . . . . . . . . . . . . . . Crush 1 | . . . . . . 1 . . . . . . . . . . . . . . . Escape Stasis 56 | . . . . . . . 43 . . . . . . . 1 . . . 12 . . Rewire 24 | . . . . . . . 24 . . . . . . . . . . . . . . Trap . | . . . . . . . . . . . . . . . . . . . . . . Miscellaneous . | . . . . . . . . . . . . . . . . . . . . . . Route ------- -11/Scrapyard -10/Materials (discovered 4 exits: *Mat x3 / [*Min]) -9/Materials -9/Mines (discovered 4 exits: *Mat x2 / *Exi / *Zio) -9/Exiles (discovered 2 exits: *Min x2) -8/Mines -8/Materials (discovered 3 exits: *Fac x2 / Gar) -8/Garrison (discovered 3 exits: *Mat x3) -8/Materials -7/Factory -7/Lower Caves -7/Lower Caves -7/Zion (discovered 2 exits: Dee / *Pro) -6/Proximity Caves -6/Factory -5/Factory (discovered 3 exits: *Fac / Upp x2) -4/Factory (discovered 8 exits: *Res x4 / Upp x2 / Ext x2) -3/Research (discovered 3 exits: *Res x3) -2/Research -2/DSF -1/Access -1/Command (discovered 2 exits: Sur x2) History --------- Turn | Location | Event 8 | -11/Scrapyard | Discovered new exit (range 15) 215 | -11/Scrapyard | Entered Materials 307 | -10/Materials | Build established: Mutant 390 | -10/Materials | Discovered new exit (range 16) 790 | -10/Materials | Discovered new exit (range 15) 898 | -10/Materials | Discovered new exit (range 15) 1016 | -10/Materials | Repaired Med. Storage Unit 1169 | -10/Materials | Discovered new exit (range 5) 1660 | -10/Materials | Entered another Materials area 1660 | -9/Materials | Evolved 2 slots: Propulsion x1, Utility x1 1779 | -9/Materials | Discovered new exit (range 12) 2084 | -9/Materials | Lost 4 parts (3n1u) 2343 | -9/Materials | Build established: Scavenger-Mutant 2414 | -9/Materials | Repaired Ion Engine 2561 | -9/Materials | Entered Mines 2561 | -9/Mines | Discovered new exit (range 7) 2567 | -9/Mines | Learned Materials emergency access door positions 2612 | -9/Mines | Assembled infested the area 2622 | -9/Mines | Core integrity fell below 50% 2626 | -9/Mines | Met a Derelict who couldn't figure out how to use a Trap Extractor 2682 | -9/Mines | Core integrity fell below 20% 2689 | -9/Mines | Met a Derelict bent on vengeance 2799 | -9/Mines | Escorted by a lone wolf Derelict 2819 | -9/Mines | Learned location of Storage (-7) 2916 | -9/Mines | Build established: Mutant 2920 | -9/Mines | Discovered new exit (range 6) 2921 | -9/Mines | A Derelict revealed a hidden shortcut to a safe place 2939 | -9/Mines | Identified exit to Materials 2945 | -9/Mines | Identified exit to Zion 3042 | -9/Mines | Deemed a non-threat by the Exiles lab entrance 3042 | -9/Mines | Discovered new exit (range 5) 3046 | -9/Mines | Identified exit to Exiles 3047 | -9/Mines | Entered Exiles 3047 | -9/Exiles | Accompanied by 1 ally 3068 | -9/Exiles | Discovered new exit (range 14) 3103 | -9/Exiles | Met 8R-AWN 3126 | -9/Exiles | Met EX-HEX 3166 | -9/Exiles | Met EX-BIN 3186 | -9/Exiles | Aligned with FarCom system 3187 | -9/Exiles | Given EX-Vault access code 3222 | -9/Exiles | Opened EX-Vault 3233 | -9/Exiles | Found Modified TNC 3262 | -9/Exiles | Warned to stay clear of 0b10 Research branches 3305 | -9/Exiles | Met EX-DEC 3311 | -9/Exiles | Learned location of Zion (-7) 3381 | -9/Exiles | Discovered new exit (range 14) 3399 | -9/Exiles | Identified exit to Mines 3403 | -9/Exiles | Left Exiles lab with Modified TNC 3403 | -9/Exiles | Entered Mines 3540 | -8/Mines | Discovered exit to Materials (range 8) 3548 | -8/Mines | Entered Materials 3548 | -8/Materials | Evolved 2 slots: Utility x2 3715 | -8/Materials | Repaired Hrd. Heavy Armor Plating 4965 | -8/Materials | Lost 3 parts (1p1u1w) 5098 | -8/Materials | Discovered new exit (range 16) 5948 | -8/Materials | First assault squad dispatched 5993 | -8/Materials | Destroyed 7 combat bots 6039 | -8/Materials | Discovered new exit (range 14) 6962 | -8/Materials | Lost 3 parts (1p1n1w) 7251 | -8/Materials | Identified exit to Garrison 7251 | -8/Materials | Entered Garrison 7375 | -8/Garrison | Triggered checkpoint 7488 | -8/Garrison | Core integrity fell below 50% 7647 | -8/Garrison | Discovered new exit (range 14) 7959 | -8/Garrison | Triggered checkpoint 8093 | -8/Garrison | Triggered checkpoint 8313 | -8/Garrison | Triggered checkpoint 8348 | -8/Garrison | Destroyed 7 combat bots 8797 | -8/Garrison | Triggered checkpoint 8851 | -8/Garrison | Triggered checkpoint 9073 | -8/Garrison | Discovered new exit (range 14) 9273 | -8/Garrison | Triggered checkpoint 9482 | -8/Garrison | Attempted to access garrison exit controls, blocked by remote lockdown 9650 | -8/Garrison | Triggered checkpoint 9668 | -8/Garrison | Discovered new exit (range 14) 9928 | -8/Garrison | Entered Materials 10607 | -8/Materials | Discovered new exit (range 39) 10765 | -8/Materials | Entered Factory 10765 | -7/Factory | Evolved 2 slots: Propulsion x1, Utility x1 10890 | -7/Factory | Repaired Broken Imp. VTOL Module 10909 | -7/Factory | Build established: Scavenger-Ninja 10944 | -7/Factory | Repaired Broken Missile Launcher 11034 | -7/Factory | Discovered new exit (range 11) 11081 | -7/Factory | Entered Lower Caves 11087 | -7/Lower Caves | Met a Warlord Commander 11088 | -7/Lower Caves | Learned location of Warlord (-5) 11089 | -7/Lower Caves | Warlord Commander delivered Encrypted Comm Array 11226 | -7/Lower Caves | Spotted B-75 Beast 11317 | -7/Lower Caves | Encountered a Warlord checkpoint 11335 | -7/Lower Caves | Discovered new exit (range 12) 11343 | -7/Lower Caves | Entered another Lower Caves area 11362 | -7/Lower Caves | Build established: Mutant 11531 | -7/Lower Caves | Discovered exit to Zion (range 9) 11534 | -7/Lower Caves | Entered Zion 11539 | -7/Zion | Learned 4 Factory zone layouts 11548 | -7/Zion | Received a hallucinogenic algorithm 11575 | -7/Zion | Discovered new exit (range 15) 11658 | -7/Zion | Identified exit to Deep Caves 11783 | -7/Zion | Rebuked by Imprinter 11828 | -7/Zion | Found Prototype Device 11828 | -7/Zion | Identified Bomb Factory No. 2 11879 | -7/Zion | Visited the Megawrench Repair Shop 11879 | -7/Zion | Megawrench repaired 6 parts 11912 | -7/Zion | Entered Proximity Caves 12052 | -6/Proximity Caves | Build established: Hacker-Mutant 12096 | -6/Proximity Caves | Learned Factory stockpile data 12096 | -6/Proximity Caves | Learned Factory stockpile data 12156 | -6/Proximity Caves | Spotted B-75 Beast 12407 | -6/Proximity Caves | Discovered new exit (range 14) 12408 | -6/Proximity Caves | Attracted the attention of an 0b10 checkpoint 12411 | -6/Proximity Caves | Entered Factory 12411 | -6/Factory | Evolved 2 slots: Power x1, Propulsion x1 12412 | -6/Factory | Identified exit to Factory 12647 | -6/Factory | Repaired Field Propulsion Drive 12791 | -6/Factory | Entered another Factory area 12791 | -5/Factory | Evolved 2 slots: Propulsion x1, Utility x1 12878 | -5/Factory | Repaired Imp. VTOL Module 12925 | -5/Factory | Discovered new exit (range 7) 12941 | -5/Factory | Identified exit to Upper Caves 12956 | -5/Factory | Build established: Hacker-Ninja 13243 | -5/Factory | Crushed by falling debris 13287 | -5/Factory | Entered another Factory area 13287 | -4/Factory | Evolved 2 slots: Utility x2 13425 | -4/Factory | Repaired Imp. Light Armor Plating 13449 | -4/Factory | Repaired Power Maul 13535 | -4/Factory | Identified exit to Upper Caves 13535 | -4/Factory | Identified exit to Extension 13538 | -4/Factory | Mak. Hacking Suite fried by hacking feedback 13580 | -4/Factory | Fabricated Hacking Suite (x1) 13828 | -4/Factory | Identified exit to Research 13915 | -4/Factory | Fabricated Cld. VTOL Module? 14032 | -4/Factory | Entered Research 14032 | -3/Research | Evolved 2 slots: Propulsion x1, Utility x1 14037 | -3/Research | Identified exit to Research 14282 | -3/Research | Fabricated Cld. VTOL Module? 14324 | -3/Research | Entered another Research area 14324 | -2/Research | Evolved 2 slots: Propulsion x1, Utility x1 14342 | -2/Research | Identified exit to DSF 14342 | -2/Research | Entered DSF 14366 | -2/DSF | Additional patrols routed to DSF 14385 | -2/DSF | Discovered new exit (range 12) 14393 | -2/DSF | Entered Access 14393 | -1/Access | Evolved 2 slots: Utility x2 14397 | -1/Access | Lost 3 parts (1n2u) 14473 | -1/Access | Repaired Power Maul 14661 | -1/Access | Fabricated Cld. VTOL Module? 15065 | -1/Access | Energy Cycler disabled 15158 | -1/Access | Discovered new exit (range 10) 15160 | -1/Access | Entered Command 15178 | -1/Command | Disengaged cave seal 15186 | -1/Command | Identified exit to Surface 15597 | -1/Command | Spotted B-99 Colossus 15646 | -1/Command | Phase Generator disabled 15741 | -1/Command | Found Enh. Force Lance 15759 | -1/Command | Lost 7 parts (1p3n3u) 15845 | -1/Command | System corruption reached 10% 15846 | -1/Command | Core integrity fell below 50% 15847 | -1/Command | Core integrity fell below 20% 15848 | -1/Command | Destroyed by G-73 Enforcer with Phase Gun Last Messages --------------- payload. 15843_ G-73 Enforcer unfolds itself. 15843_ Mic. Antimatter Reactor destroyed. 15843_ Imp. Hacking Suite blown off. 15843_ Adv. ECM Suite blown off. 15843_ Mak. Hacking Suite blown off. 15843_ Enh. Optical Array blown off. 15843_ E-15 Imp destroyed. 15845_ P-80 Master resets P-80 Master, system corruption cleaned. 15846_ Slug penetrates P-80 Master. 15846_ Penetrated by Slug. 15846_ P-80 Master resets P-80 Master, system corruption cleaned. 15846_ Slammed into C-57 Dissector. 15847_ P-80 Master resets P-80 Master, system corruption cleaned. 15847_ G-73 Enforcer IFF system glitched. 15847_ Slammed into S-43 Plague. 15847_ S-43 Plague destroyed. Map ----- +----------------------------------------------------+ | ???????????????????????????????????????????#"" | | ???????????????????????????????????????????#"" | | ???????????????????????????????????????????#"T | | ???????????????????????????????????????????#"" | | ???????????????????#???????????????????????#"" | | ??????????????????? ???? ??? ???? ?????????#"" | | ??????????????????? ???? ??? ???? ?????????#"" | | ??????????????????? ???? ??? ???? ?????????#" | | ??????????????????? #??? ??? ???? ???????????# ! | | ????????????????### #### ### #### ###????????# | | ????????????????? d i# l # # #????????# | | ????????????????# di# # # s #???????## | | ????????????????# dei# bb? ? ????????#" | | ????????????????? i? b? ? s ???????# "###+ | | ?????????????????d Ci? lb ? h ?css ???????# #?# | | ????????????????? dCi?l ?hh ?cs ??????# #??# | | ?????????????????#Cx#?#ll#?#h #?#h #?????# #???# | | ?????????????????# C#?#l #?#h #?#s #????# #????# | | ?????????????????#xs#?#lb#?#hh#?#s #????##?????# | | ?????????????????#xs#?#l #?#hh#?#s #?????#####?# | | ?????????????????#xs#?#bb#?#hh#?#s #?????# #?# | | ?????????????????#Cs#?#lb#?#hh#?#s #?????# #?# | | ?????????????????# s#?#bb#?#hh#?#s #?????? #?# | | ????????????????##xs###lb###h ###c ######## #### | | ???????????????##seccxlbl%sh hh sh | | ???????????????#; xbgsscs@hhgs | | ???????????????##p=psgppppgssgg | | ????????????????# gsggpppg gg ggg | | ????????????????## x###pp###g ### ######## #### | | ?????????????????#sg#?#pp#?#g #?#gg#?????# #?# | | ?????????????????#sp#?#pp#?#gg#?#gg#?????# ### | | ?????????????????#"g#?#p #?#gg#?#gg#?????# "## | | ?????????????????#xg#?#p #?#g #?#gg#????######"# | | ?????????????????#gs#?#pp#?#gg#?#gg#????# #??## | | ?????????????????#ss#?#p #?#gg#?#gg#?????# #??# | | ?????????????????#xs#?#pp#?#gg#?#gg#??????# #?# | | ?????????????????xesC?p ?ggg ?gg ???????# ## | | ?????????????????xpC"? ? gg ?ggg ????????#"#### | | ????????????????? sC ? ? g ? ?????????# | | ????????????????? # # # #????????# | | ????????????????# # # # #????????# "" | | ????????????????# # ? ? ?????????# "" | | ????????????????#####################????????# "T | | ?????????????????????????????????????????????# "" | | ?????????????????????????????????????????????# "" | | ?????????????????????????????????????????????# | | ?????????????????????????????????????????????# | | ?????????????????????????????????????????????# | | ?????????????????????????????????????????????# | | ?????????????????????????????????????????????# | +----------------------------------------------------+ Best States ------------- Heat Dissipation 71 Coolant Potential 50 Energy Generation 41 Energy Capacity 350 Matter Stores 300 Matter Capacity 300 Sight Range 22 Terrain Scan Range 24 Terrain Scan Density 85 ECM Strength 2 Jamming Range 12 Cloak Strength 2 Power Amplification 30 Armor Coverage 600 Resistance: KI 25 Power Shielding 66 Evasion (%) 79 Targeting Accuracy 8 Recoil Reduction 3 Offensive Hacking 47 Defensive Hacking 12 Authchip Count 2 Item Schematics ----------------- Seismic Detector | -10/Materials | Hacked VTOL Module | -8/Materials | Hacked Visual Processing Unit | -8/Materials | Hacked Imp. Light Armor Plating | -7/Factory | Scanalyzed Imp. VTOL Module | -7/Factory | Scanalyzed Lgt. Nuclear Core | -7/Factory | Scanalyzed Adv. ECM Suite | -7/Zion | Archive Plasma Rifle | -7/Zion | Archive Power Maul | -7/Zion | Archive Imp. Recalibrator | -7/Zion | Archive Arm. Huge Wheel | -7/Zion | Archive EM Disruption Field | -7/Zion | Archive Arc Thrower | -7/Zion | Archive Lyr. Light Armor Plating | -7/Zion | Archive Lgt. Fission Core | -7/Zion | Archive Mak. Light Armor Plating | -7/Zion | Archive Mass Driver | -7/Zion | Archive Hpw. Shock Rifle | -7/Zion | Archive Gauss Cannon | -7/Zion | Archive Mak. Salvage Targeting Computer | -7/Zion | Archive Imp. Cryofiber Web | -7/Zion | Archive Hacking Suite | -6/Factory | Scanalyzed Imp. Deuterium Engine | -5/Factory | Scanalyzed Cloaking Device | -5/Factory | Scanalyzed Adv. Power Amplifier | -4/Factory | Scanalyzed Cld. VTOL Module | -4/Factory | Hacked Robot Schematics ------------------ K-01 Serf | -7/Zion | Archive B-48 Gladiator | -7/Zion | Archive Y-54 Guardian | -7/Zion | Archive H-77 Assassin | -7/Zion | Archive Fabricated ------------ Hacking Suite | x1 | -4/Factory | Authchip Cld. VTOL Module | x1 | -4/Factory Cld. VTOL Module | x1 | -3/Research Cld. VTOL Module | x1 | -1/Access Alien Tech Used ----------------- None Achievements -------------- None Challenges ------------ None Game ------ Seed ForceMissileWheel Manual? 0 Play Time 03:33:44 Cumulative 64.0 hours Start 2024.07.22 @ 17:37:41 End 2024.07.22 @ 22:55:49 Sessions 7 Manual Loads 0 Difficulty Rogue Special Mode None Game No. 40 Rogue 40 Adventurer 0 Explorer 0 Win Type - Total 0 Types 0/0/0/0/0/0/0/0/0 Lore% 39 Gallery% 53 Achievement% 40 Wizard Run 0 Options --------- Layout 2 ASCII 0 Keyboard 1 Movement Numpad Keybinds 0 Fullscreen 2 Font 24/Smallcaps Map View 50x49 Zoom Use 0% Tactical HUD 1 Map Filters NONE Filters NONE Steam 1 RUN: 57fb0e07-e5dd-404c-ad8f-9de83d43615f